bitfinex/quotes_ETHUSD_20241204
["timestamp","ask_amount","ask_price","bid_price","bid_amount"]
[1733331780946,1.72507064,3786.6,3785.0,2.642]
[1733331781233,1.5176,3786.6,3785.1,0.01382328]
[1733331781401,2.04740341,3786.6,3785.1,0.01382328]
[1733331781604,1.5176,3786.6,3785.2,2.64186]
[1733331781786,1.08509327,3787.5,3784.7,1.46220822]
[1733331781787,1.5176,3786.4,3784.7,1.46220822]
[1733331781994,1.5176,3786.2,3784.8,2.64214]
[1733331782191,1.67266157,3786.2,3784.7,1.46220822]
[1733331782423,1.5176,3786.2,3784.7,1.46220822]
[1733331782626,0.03301833,3786.1,3784.7,1.46220822]
[1733331782877,0.54057909,3786.1,3784.7,0.40503022]
[1733331783134,1.5176,3786.2,3786.1,2.64124]
[1733331783697,1.5176,3786.2,3785.4,2.64167]
[1733331783894,1.5176,3786.2,3785.2,2.6556752]
[1733331784124,1.5573,3787.4,3786.1,2.64124]
[1733331784431,1.5573,3787.2,3786.4,2.64102]
[1733331784731,1.5573,3787.0,3785.8,2.64141]
[1733331785032,1.5903149,3786.9,3785.3,2.64179]
[1733331785239,1.5903149,3786.9,3785.1,3.04341846]
[1733331785530,1.5903149,3786.9,3785.7,2.64151]
[1733331785688,1.5903149,3786.9,3784.9,0.54126604]
[1733331785689,1.5573,3786.7,3784.9,0.54126604]
[1733331785891,1.5573,3786.7,3785.7,2.6415]
[1733331786119,1.5573,3786.7,3785.8,2.64144]
[1733331786497,1.5573,3786.7,3786.2,2.64116]
[1733331786718,1.5573,3786.7,3786.1,2.64121]
[1733331786946,1.73611911,3786.7,3786.1,2.64121]
[1733331787158,1.73611911,3786.7,3785.1,0.55]
[1733331787330,0.03301446,3786.6,3786.0,2.6413]
[1733331787526,1.57981447,3786.6,3785.1,0.40482594]
[1733331787713,1.5468,3786.4,3784.1,4.21023]
[1733331787914,1.5468,3786.2,3784.5,0.39469222]
[1733331788218,1.5468,3786.2,3785.0,2.64194]
[1733331788460,1.5468,3786.2,3785.0,2.64195]
[1733331788736,1.5468,3786.2,3785.8,2.64144]
[1733331788920,1.5468,3786.2,3784.6,3.0]
[1733331789225,1.5468,3786.2,3784.8,3.55]
[1733331789639,1.5468,3786.2,3784.9,5.64207]
[1733331789918,1.5468,3786.2,3785.7,2.64151]
[1733331790110,1.7572438,3786.2,3784.5,3.0]
[1733331790316,1.5948,3786.0,3785.4,2.64169]
[1733331790882,1.5948,3786.0,3785.5,2.64163]
[1733331791186,1.5948,3786.0,3785.5,2.64162]
[1733331791393,1.5948,3786.0,3784.4,1.46448617]
[1733331791394,1.5948,3786.0,3785.1,0.01382491]
[1733331791701,2.85863468,3787.5,3786.5,2.64095]
[1733331791702,0.03301747,3787.0,3786.5,2.64095]
[1733331791904,1.5773,3787.1,3786.0,2.64127]
[1733331792202,0.53034206,3786.6,3786.3,2.64104]
[1733331792400,0.53034206,3786.6,3786.5,2.64096]
[1733331792758,1.5773,3786.9,3786.8,2.64075]
[1733331792962,1.5773,3786.9,3785.9,0.40515882]
[1733331793189,1.5773,3786.9,3786.6,2.64083]
[1733331793494,1.5773,3786.9,3786.2,2.6411]
[1733331793495,3.33,3786.8,3786.2,2.6411]
[1733331793696,3.33,3786.8,3786.4,2.64097]
[1733331793896,3.33,3786.8,3786.7,2.64082]
[1733331794610,3.33,3786.8,3786.3,2.64107]
[1733331794810,1.5925,3786.7,3786.3,2.64107]
[1733331795095,1.5925,3786.7,3786.4,2.64102]
[1733331795401,1.5925,3786.7,3786.6,2.64089]
[1733331795563,1.5925,3786.7,3786.3,2.64105]
[1733331795759,1.5925,3786.7,3786.4,2.64102]
[1733331795965,1.5925,3786.7,3786.0,2.64127]
[1733331796302,1.5925,3786.7,3786.5,2.64089]
[1733331796507,1.5925,3786.7,3786.6,2.64089]
[1733331796667,1.5925,3786.7,3786.5,2.64095]
[1733331796861,1.5925,3786.7,3785.6,0.55]
[1733331797081,1.5925,3786.7,3786.6,2.64089]
[1733331797505,2.13731385,3786.7,3785.1,5.64192]
[1733331797662,1.5925,3786.7,3786.4,2.641]
[1733331797867,1.5925,3786.7,3786.2,2.64116]
[1733331798066,3.33,3786.8,3785.1,2.64187]
[1733331798067,0.03301475,3786.6,3785.1,2.64187]
[1733331798371,0.03301475,3786.6,3784.9,0.40021834]
[1733331798372,1.5767,3786.5,3785.5,2.64165]
[1733331798573,1.5767,3786.5,3786.4,2.64103]
[1733331799701,1.5767,3786.5,3785.9,2.64133]
[1733331799903,1.5767,3786.5,3785.6,2.64152]
[1733331800064,0.19068345,3786.4,3785.6,2.64152]
[1733331800666,0.19068345,3786.4,3784.8,3.18219349]
[1733331800869,0.0330199,3786.3,3785.3,2.64178]
[1733331801104,1.5718,3786.2,3785.3,2.64174]
[1733331801262,1.5718,3786.2,3784.9,2.64207]
[1733331801470,1.5718,3786.2,3785.4,2.6417]
[1733331801812,1.5718,3786.2,3785.7,2.64151]
[1733331802183,1.5718,3786.2,3785.2,2.64183]
[1733331802382,1.5718,3786.2,3784.8,2.64214]
[1733331802579,0.52633803,3785.8,3784.8,3.05076811]
[1733331802782,1.6456,3785.6,3784.7,0.9992]
[1733331802983,0.25352184,3785.5,3784.7,0.9992]
[1733331803373,1.6456,3785.6,3784.7,0.9992]
[1733331803599,0.51925535,3785.9,3785.8,2.64144]
[1733331803911,1.6456,3786.3,3786.0,2.64126]
[1733331804204,1.6456,3786.3,3784.8,5.64214]
[1733331804410,0.53569351,3786.2,3786.0,2.6413]
[1733331804611,0.53569351,3786.2,3785.5,2.64161]
[1733331804796,0.53569351,3786.2,3784.8,5.64214]
[1733331804971,0.53569351,3786.2,3785.5,2.6416]
[1733331805170,1.6456,3786.0,3784.7,0.9992]
[1733331805408,1.6456,3786.0,3785.8,2.64144]
[1733331805795,1.6456,3786.6,3785.5,2.64161]
[1733331805975,1.6456,3786.6,3786.4,2.64102]
[1733331806315,1.6456,3786.6,3785.1,2.64191]
[1733331806607,1.6456,3786.6,3784.8,7.20371]
[1733331806608,1.6456,3786.6,3785.7,2.64148]
[1733331806781,1.6456,3786.6,3785.8,2.64144]
[1733331806983,0.52337811,3786.5,3785.5,2.64161]
[1733331807211,0.52337811,3786.5,3786.3,2.64109]
[1733331807523,0.52337811,3786.5,3786.2,2.64113]
[1733331807670,0.52337811,3786.5,3786.1,2.64123]
[1733331808105,0.03301572,3786.4,3785.1,0.55]
[1733331808413,0.03301572,3786.4,3785.0,3.17283363]
[1733331808414,1.5317,3786.3,3785.0,3.17283363]
[1733331808623,1.6636,3786.1,3785.4,2.64169]
[1733331808973,1.6636,3786.1,3785.7,2.64145]
[1733331809173,1.6636,3786.1,3785.5,2.64164]
[1733331809407,1.6636,3786.1,3784.9,0.41216776]
[1733331809592,1.86297915,3786.1,3784.9,2.64204]
[1733331809802,1.82996,3786.1,3784.7,0.9992]
[1733331810004,1.6636,3786.1,3785.8,2.64142]
[1733331810376,1.6636,3786.1,3785.8,2.64143]
[1733331810584,0.51601751,3785.9,3785.8,2.64138]
[1733331810825,1.17961751,3786.1,3786.0,2.64131]
[1733331811521,3.33,3786.2,3786.1,2.64124]
[1733331813948,4.857,3786.2,3786.1,2.64124]
[1733331814559,4.857,3786.2,3785.5,2.6416]
[1733331814719,0.0330182,3786.1,3785.8,2.64142]
[1733331815040,0.0330182,3786.1,3785.6,2.64157]
[1733331815341,1.5311,3786.0,3784.8,2.64213]
[1733331815713,3.33,3786.2,3785.9,2.64137]
[1733331815900,3.33,3786.2,3786.1,2.64124]
[1733331817496,3.33,3786.2,3785.9,2.64136]
[1733331817731,0.03301759,3786.1,3785.5,2.64164]
[1733331817922,0.03302063,3786.1,3785.0,3.04309161]
[1733331818137,3.33,3785.3,3784.7,3.64141]
[1733331818424,3.33,3785.3,3785.2,2.64186]
[1733331820108,4.9545,3785.3,3785.2,2.64186]
[1733331820821,4.9545,3785.3,3784.7,3.64136]
[1733331821295,4.9545,3785.3,3784.8,2.64211]
[1733331821490,0.03302699,3785.2,3784.7,0.9992]
[1733331821694,1.6245,3785.1,3784.7,0.9992]
[1733331822007,0.53816067,3784.9,3784.7,0.9992]
[1733331822221,1.6245,3784.7,3783.9,2.64277]
[1733331822387,1.6245,3784.5,3783.1,0.397715]
[1733331822603,1.6245,3784.3,3782.9,5.28694]
[1733331822838,0.03303987,3784.2,3782.7,1.46113708]
[1733331823132,1.6245,3784.1,3783.4,2.64307]
[1733331823293,0.25706283,3784.4,3783.5,2.64298]
[1733331823294,1.6245,3783.9,3783.5,2.64298]
[1733331823497,1.6245,3783.9,3783.3,2.64319]
[1733331823742,0.57331627,3783.8,3783.3,2.64319]
[1733331823887,0.57331627,3783.8,3783.1,2.64332]
[1733331824227,1.6245,3783.7,3783.1,2.64329]
[1733331824436,1.65754331,3783.7,3782.9,2.64346]
[1733331826436,1.67454783,3782.9,3782.3,2.64382]
[1733331826603,1.67454783,3782.9,3782.5,2.64369]
[1733331826604,1.8960301,3782.9,3782.5,2.64369]
[1733331826791,1.86298227,3782.9,3782.5,2.64374]
[1733331826994,1.86298227,3782.9,3781.7,2.64431]
[1733331827197,0.03305273,3782.8,3781.7,2.64431]
[1733331827394,1.6415,3782.9,3782.8,2.64354]
[1733331827937,1.6415,3783.5,3783.4,2.64307]
[1733331828254,1.6415,3783.5,3783.4,0.55]
[1733331828835,1.6415,3783.5,3782.7,2.64356]
[1733331828836,1.82384993,3783.5,3783.3,3.17318]
[1733331829536,2.34073833,3783.5,3783.2,2.64326]
[1733331829691,2.1583884,3783.5,3783.4,2.64312]
[1733331830294,2.1583884,3783.5,3783.1,2.64326]
[1733331830539,2.1583884,3783.5,3782.6,2.64362]
[1733331830739,0.03304346,3783.4,3782.8,0.55]
[1733331831034,0.03304346,3783.4,3783.0,0.55]
[1733331831246,0.03304346,3783.4,3782.9,2.64345]
[1733331831247,0.21914319,3783.4,3782.9,0.55]
[1733331831541,0.53312877,3784.2,3783.8,2.6428]
[1733331831694,1.5158,3784.6,3784.5,2.64235]
[1733331831927,2.0335877,3784.6,3784.5,3.19235]
[1733331832260,1.5158,3785.2,3785.1,3.19193]
[1733331832471,3.33,3785.3,3785.2,3.19186]
[1733331839067,8.2656,3786.2,3786.1,2.64124]
[1733331839252,8.2656,3786.2,3786.1,3.19124]
[1733331839472,9.09216,3786.2,3786.1,0.55]
[1733331839667,9.61308801,3786.2,3785.4,2.64171]
[1733331839850,1.6056,3786.0,3784.0,0.40113168]
[1733331840054,8.00748801,3786.2,3784.9,2.64205]
[1733331840055,1.6056,3785.8,3784.9,2.64205]
[1733331840291,1.80249124,3785.7,3784.9,2.64205]
[1733331840466,1.80249124,3785.7,3784.6,2.64228]
[1733331840669,0.53197336,3785.5,3784.9,2.64207]
[1733331840979,0.53197336,3785.5,3783.8,2.64281]
[1733331840980,0.0330283,3785.4,3783.8,2.64281]
[1733331841150,1.6056,3785.3,3783.8,2.6428]
[1733331841480,1.6056,3784.8,3782.6,2.64368]
[1733331841695,1.6056,3784.6,3783.2,2.6432]
[1733331841848,2.64245,3784.4,3783.2,2.6432]
[1733331842178,2.84212,3784.9,3782.4,2.64382]
[1733331842179,1.6056,3784.2,3783.3,2.64318]
[1733331842385,1.544,3784.0,3783.3,2.64318]
[1733331842552,0.52605985,3783.4,3782.7,2.64355]
[1733331842754,0.52605985,3783.4,3783.3,2.64319]
[1733331842939,1.544,3784.0,3782.3,1.5428]
[1733331842940,1.544,3784.0,3783.7,2.6429]
[1733331843139,1.544,3784.0,3783.2,2.64322]
[1733331843344,1.544,3784.0,3783.6,2.64296]
[1733331843539,0.5255313,3783.8,3783.4,2.6431]
[1733331843779,0.5255313,3783.8,3783.1,2.64327]
[1733331844090,0.5255313,3783.8,3781.6,2.64437]
[1733331844091,1.65754356,3783.7,3781.6,2.64437]
[1733331844389,1.87585105,3783.7,3782.9,2.64343]
[1733331844548,1.87585105,3783.7,3782.7,2.64359]
[1733331844756,1.87585105,3783.7,3782.0,2.6441]
[1733331844958,1.87585105,3783.7,3782.8,2.64348]
[1733331845266,1.87585105,3783.7,3783.3,2.64315]
[1733331845454,1.6245,3783.7,3782.9,3.19345]
[1733331845798,1.6245,3783.7,3783.5,0.55]
[1733331846297,0.54133477,3783.6,3783.5,3.19305]
[1733331846909,5.36369017,3785.2,3784.4,2.64239]
[1733331846910,1.6087397,3785.1,3784.4,2.64239]
[1733331847106,1.5757,3785.1,3784.9,0.55]
[1733331847400,0.52822688,3785.0,3784.9,3.19207]
[1733331847605,1.6371,3786.1,3785.4,0.55]
[1733331847820,0.912366,3786.0,3785.9,0.55]
[1733331848101,1.6371,3786.1,3785.9,0.55]
[1733331848306,1.6371,3786.1,3786.0,3.19131]
[1733331848857,6.66,3786.2,3786.0,3.19131]
[1733331849060,9.99,3786.6,3786.5,3.19096]
[1733331849501,9.99,3786.6,3786.4,0.55]
[1733331849703,1.652,3786.4,3786.0,0.55]
[1733331850259,1.652,3786.4,3786.0,2.64129]
[1733331850459,1.652,3786.4,3786.3,3.1911]
[1733331850717,9.99,3786.6,3786.5,3.19096]
[1733331850897,9.99,3786.6,3786.5,0.55]
[1733331851105,11.37530281,3786.6,3786.2,0.55]
[1733331851296,0.03301727,3786.5,3786.2,0.55]
[1733331851620,11.37530281,3786.6,3786.2,0.55]
[1733331852115,0.0330175,3786.5,3786.1,0.55]
[1733331852479,1.6502,3786.4,3785.8,3.19143]
[1733331852775,3.00935484,3786.4,3786.0,0.55]
[1733331853004,3.00935484,3786.4,3786.2,0.55]
[1733331853518,1.6452,3786.4,3786.2,0.55]
[1733331854295,1.6452,3786.4,3786.3,3.1911]
[1733331854494,9.99,3786.6,3786.3,0.55]
[1733331854806,9.99,3786.6,3785.9,2.64131]
[1733331854807,9.99,3786.6,3786.4,0.55]
[1733331855322,2.6411,3786.3,3784.5,2.64228]
[1733331855519,2.64139,3785.9,3784.6,2.64227]
[1733331855724,0.03302946,3785.8,3784.0,4.26408]
[1733331855906,1.41833304,3786.5,3785.3,2.64179]
[1733331856086,1.1408333,3786.4,3785.8,2.64141]
[1733331856279,3.33,3786.8,3785.9,2.64132]
[1733331856511,1.6075,3785.8,3785.3,2.64175]
[1733331856686,1.6075,3785.8,3784.0,1.6214]
[1733331856903,1.6075,3785.8,3785.5,2.64164]
[1733331857223,1.6075,3785.8,3785.0,2.64195]
[1733331857383,0.03302618,3785.7,3784.0,1.6214]
[1733331857582,2.64186,3785.2,3783.5,4.26641]
[1733331857897,2.64236,3784.5,3783.0,1.6234]
[1733331858219,1.6535,3784.3,3783.1,0.01385983]
[1733331858428,1.6428,3785.1,3783.0,2.64336]
[1733331858577,1.6428,3785.1,3784.5,2.64232]
[1733331858783,1.6428,3785.1,3784.4,2.64239]
[1733331858983,1.6428,3785.1,3784.9,2.64206]
[1733331859206,1.6428,3785.1,3785.0,2.642]
[1733331859717,1.6428,3785.1,3785.0,0.55]
[1733331859895,2.16809768,3785.1,3785.0,3.192]
[1733331860096,1.6428,3786.4,3785.1,2.64193]
[1733331860283,1.6428,3786.4,3786.2,2.64114]
[1733331860482,1.6428,3786.4,3785.0,0.55]
[1733331860686,1.67581874,3786.4,3785.0,0.94279339]
[1733331860983,1.67581874,3786.4,3784.3,3.0]
[1733331860984,0.52244367,3786.3,3785.2,0.55]
[1733331861321,1.5697,3785.8,3784.7,0.55]
[1733331861507,0.03302793,3785.7,3785.0,0.55]
[1733331861711,0.03302793,3785.7,3784.9,2.64203]
[1733331861923,1.5386,3785.6,3784.5,2.64233]
[1733331862099,0.03302921,3785.5,3784.5,2.64233]
[1733331862296,0.03303074,3785.5,3784.9,2.64206]
[1733331862516,1.5386,3785.6,3784.8,2.64208]
[1733331862837,1.5386,3785.6,3783.7,3.0]
[1733331862838,0.53524313,3785.0,3784.1,2.64262]
[1733331862992,0.53524313,3785.0,3784.7,2.64216]
[1733331863428,0.53524313,3785.0,3784.8,0.55]
[1733331863735,1.6119,3784.8,3784.1,2.64257]
[1733331863928,1.6119,3784.8,3784.4,2.64241]
[1733331864145,1.6119,3784.8,3783.4,1.5772]
[1733331864291,1.59789924,3784.8,3784.5,2.64233]
[1733331864634,1.59789924,3784.8,3783.5,0.01384448]
[1733331864635,1.56789924,3784.8,3783.5,0.01384448]
[1733331864835,0.53524313,3785.0,3783.6,2.64298]
[1733331865129,0.53524313,3785.0,3783.5,0.01384448]
[1733331865130,0.47186658,3786.4,3784.9,0.55]
[1733331865333,2.64138,3785.9,3785.0,0.55]
[1733331865540,1.18772028,3786.3,3783.7,2.64291]
[1733331865541,0.51975106,3785.2,3783.7,2.64291]
[1733331865694,0.51975106,3785.2,3783.4,1.98878515]
[1733331865894,0.51975106,3785.2,3784.6,2.64222]
[1733331866129,1.15469599,3786.3,3785.6,2.64158]
[1733331866328,1.15469599,3786.3,3784.7,0.0138381]
[1733331866329,0.27116558,3786.2,3786.0,2.64128]
[1733331866538,0.27116558,3786.2,3784.7,2.64221]
[1733331866539,9.99,3786.6,3785.0,0.01382045]
[1733331866689,9.99,3786.6,3785.4,2.64167]
[1733331866898,9.99,3786.6,3786.3,3.19108]
[1733331867133,9.99,3786.6,3786.3,0.55]
[1733331867339,9.99,3786.6,3786.2,0.55]
[1733331867543,0.53962605,3786.4,3786.2,0.55]
[1733331867833,0.53962605,3786.4,3786.1,0.55]
[1733331868032,0.53962605,3786.4,3786.1,3.19122]
[1733331868190,0.53962605,3786.4,3786.0,0.55]
[1733331868594,0.53962605,3786.4,3786.3,0.55]
[1733331868835,2.42211866,3786.4,3786.0,0.55]
[1733331869003,0.53962605,3786.4,3786.3,3.1911]
[1733331870021,0.53962605,3786.4,3786.1,0.55]
[1733331870281,0.57264442,3786.4,3786.0,0.55]
[1733331870584,0.57264442,3786.4,3784.6,3.0]
[1733331870585,1.5173,3786.3,3785.1,2.64191]
[1733331870788,1.5756,3786.1,3784.3,4.26753]
[1733331871077,1.5756,3785.8,3784.3,4.26753]
[1733331871366,0.03302674,3785.7,3784.4,2.64242]
[1733331871562,1.5756,3785.8,3784.3,1.6251]
[1733331871563,1.5756,3785.8,3784.5,0.01383676]
[1733331871727,1.5756,3785.8,3785.4,2.64172]
[1733331871922,1.5756,3785.8,3785.5,2.64165]
[1733331872373,1.5756,3785.8,3785.5,2.64164]
[1733331872528,0.52355411,3785.9,3785.8,3.19144]
[1733331872723,1.603,3786.4,3786.3,2.6411]
[1733331873037,1.603,3786.4,3786.3,0.55]
[1733331873734,1.603,3786.4,3785.7,2.64151]
[1733331873735,1.603,3786.4,3786.2,0.55]
[1733331873927,1.603,3786.4,3786.2,3.19116]
[1733331874265,17.19029763,3786.6,3786.5,2.64096]
[1733331874473,17.19029763,3786.6,3786.5,3.19096]
[1733331874924,14.0091,3786.6,3786.5,3.19096]
[1733331875125,5.33973,3786.7,3786.6,2.64089]
[1733331875326,13.2376707,3787.2,3786.7,3.19082]
[1733331875327,2.78,3786.8,3786.7,3.19082]
[1733331875634,6.66,3787.2,3786.9,4.17238]
[1733331875837,11.71728912,3787.3,3787.1,0.7339]
[1733331876147,5.11643912,3787.3,3787.2,5.64047]
[1733331876851,5.11643912,3787.3,3787.2,6.17437]
[1733331877043,1.15625912,3787.3,3787.2,6.27437]
[1733331877246,5.94619912,3787.4,3787.3,6.3743]
[1733331877457,5.94619912,3787.4,3787.3,6.9243]
[1733331877973,24.30915467,3787.7,3787.6,5.94019]
[1733331878140,18.38021233,3787.7,3787.6,26.232549]
[1733331878473,18.38021233,3787.7,3787.6,16.884874]
[1733331878636,11.07253918,3787.7,3787.6,5.94019]
[1733331878831,3.33,3787.8,3787.6,48.238925]
[1733331879186,1.61177416,3787.9,3787.8,5.94005]
[1733331879335,0.51686941,3790.9,3789.3,0.2]
[1733331879672,0.72528635,3790.9,3789.6,2.63878]
[1733331879975,0.72528635,3790.9,3788.6,2.63946]
[1733331879976,1.6416,3790.8,3789.2,2.63907]
[1733331880130,0.53001956,3789.9,3789.2,2.63907]
[1733331880331,1.6416,3789.8,3788.9,2.63924]
[1733331880631,1.6416,3789.8,3787.7,0.1]
[1733331880834,0.52368214,3789.1,3788.4,2.63957]
[1733331881033,0.52368214,3789.1,3787.7,0.4028626]
[1733331881349,1.6416,3789.0,3787.9,2.63993]
[1733331881535,1.6416,3789.0,3787.2,3.05775008]
[1733331881734,1.6416,3789.0,3787.2,0.41732008]
[1733331881929,0.19715403,3788.9,3787.5,2.64019]
[1733331882131,0.54052912,3788.5,3787.4,2.6403]
[1733331882537,0.54052912,3788.5,3786.6,0.11378067]
[1733331882737,0.54052912,3788.5,3787.4,2.64032]
[1733331882939,0.54052912,3788.5,3786.6,2.75464067]
[1733331882940,0.54052912,3788.5,3787.5,2.64025]
[1733331883189,0.54052912,3788.5,3787.9,2.63998]
[1733331883484,0.54052912,3788.5,3788.3,2.63969]
[1733331883787,1.6416,3789.0,3787.6,0.55]
[1733331884080,1.6416,3789.0,3788.3,3.0]
[1733331884081,2.15720193,3789.0,3788.3,3.0]
[1733331884234,2.15720193,3789.0,3788.3,2.63969]
[1733331884569,2.15720193,3789.0,3788.1,0.55]
[1733331884768,2.15720193,3789.0,3788.3,2.63967]
[1733331885671,2.15720193,3789.0,3788.0,0.55]
[1733331886038,2.15720193,3789.0,3787.8,3.0]
[1733331886039,1.6177,3789.5,3787.8,0.56376744]
[1733331886241,1.6177,3789.5,3788.7,2.63941]
[1733331886441,1.6177,3790.4,3789.2,2.63902]
[1733331886656,1.6177,3790.4,3788.3,0.01376482]
[1733331886657,0.52602675,3789.8,3789.4,2.63892]
[1733331886979,0.52602675,3789.8,3789.1,2.63909]
[1733331887186,0.52602675,3789.8,3788.4,2.63963]
[1733331887481,0.52602675,3789.8,3788.5,3.55]
[1733331887835,0.52602675,3789.8,3787.6,3.1]
[1733331888040,1.598,3789.6,3788.2,3.18977]
[1733331888330,1.598,3789.6,3788.2,0.55]
[1733331888447,1.598,3789.6,3788.2,0.0137594]
[1733331888782,1.598,3789.6,3788.5,2.63956]
[1733331888948,0.52602675,3789.8,3788.6,0.55]
[1733331889130,0.52602675,3789.8,3788.8,3.0]
[1733331889335,0.52602675,3789.8,3789.7,2.63873]
[1733331889569,0.52602675,3789.8,3789.7,3.18873]
[1733331889871,1.6587,3790.7,3789.7,3.18873]
[1733331889872,1.6587,3790.7,3789.9,2.63856]
[1733331890446,1.6587,3790.7,3790.0,2.6385]
[1733331890748,0.52328098,3790.2,3790.0,2.6385]
[1733331890937,1.6587,3790.7,3789.3,0.55]
[1733331891140,1.84541169,3790.7,3789.8,2.63863]
[1733331891645,1.84541169,3790.7,3789.7,2.63872]
[1733331891869,1.84541169,3790.7,3789.8,2.63865]
[1733331891870,0.52056442,3790.3,3789.8,2.63865]
[1733331892391,0.52056442,3790.3,3788.5,0.2]
[1733331892677,0.52056442,3790.3,3789.8,2.63864]
[1733331892881,0.52056442,3790.3,3789.2,2.63907]
[1733331893183,0.52056442,3790.3,3788.9,0.01374281]
[1733331893184,0.52056442,3790.3,3789.1,3.0]
[1733331893481,0.52056442,3790.3,3790.2,2.63838]
[1733331893780,0.52056442,3790.3,3788.9,5.82852]
[1733331894085,0.52056442,3790.3,3788.7,0.40301917]
[1733331894389,1.536,3790.1,3787.9,0.01375684]
[1733331894555,1.536,3790.1,3788.9,2.63926]
[1733331894753,0.5358208,3789.4,3789.0,2.63921]
[1733331895258,1.56898591,3789.3,3787.2,2.64045]
[1733331895460,1.56899085,3789.3,3788.3,2.6397]
[1733331895658,0.21048117,3789.2,3788.3,2.6397]
[1733331895895,0.21048117,3789.2,3788.2,2.63977]
[1733331896472,0.24347386,3789.2,3787.5,0.39306298]
[1733331896667,1.5382,3789.1,3786.8,2.64074]
[1733331896873,1.5382,3789.1,3786.5,2.64092]
[1733331896874,0.53989977,3788.5,3787.5,2.64025]
[1733331897119,1.57119736,3788.4,3786.5,3.0489306]
[1733331897272,1.5382,3788.4,3786.9,2.64061]
[1733331897472,0.52479842,3787.8,3786.9,2.64061]
[1733331897676,0.52479842,3787.8,3787.4,2.64033]
[1733331897872,0.52479842,3787.8,3786.6,2.65462387]
[1733331898114,1.62089921,3787.7,3786.7,2.64078]
[1733331898314,1.62089921,3787.7,3786.3,2.64103]
[1733331898511,1.62089921,3787.7,3786.3,2.64108]
[1733331898512,2.09946897,3787.7,3786.3,2.64108]
[1733331898669,2.09946897,3787.7,3786.4,2.641]
[1733331898875,1.62089921,3787.7,3785.1,0.3]
[1733331899076,1.5115,3787.5,3786.1,2.64118]
[1733331899315,0.03301066,3787.4,3786.1,2.64118]
[1733331899612,0.52041586,3786.9,3786.4,2.64101]
[1733331900913,1.5586,3786.7,3784.4,1.6476]
[1733331901187,1.5586,3786.1,3784.6,2.64227]
[1733331901416,1.5586,3785.9,3783.4,2.64312]
[1733331901739,0.03302585,3785.8,3784.7,2.64219]
[1733331902027,0.5306433,3785.3,3783.9,0.01383766]
[1733331902191,0.5306433,3785.3,3784.8,2.64213]
[1733331902811,0.5306433,3785.3,3784.9,2.64204]
[1733331902975,1.5586,3785.9,3784.2,0.28867745]
[1733331903177,1.5586,3785.9,3785.3,2.64177]
[1733331903376,1.5586,3785.9,3784.8,2.6421]
[1733331903590,1.5586,3785.9,3784.9,0.55]
[1733331903819,0.03301891,3785.8,3785.1,0.55]
[1733331904021,2.07767081,3785.9,3784.9,0.55]
[1733331904318,2.07767081,3785.9,3785.3,0.55]
[1733331904819,0.03302116,3785.8,3784.9,2.64207]
[1733331904978,2.07767081,3785.9,3784.9,2.64207]
[1733331905282,2.07767081,3785.9,3784.8,2.6421]
[1733331905623,0.03302008,3785.8,3784.3,2.64246]
[1733331905923,1.6648,3785.7,3783.9,3.05486343]
[1733331906119,1.6648,3785.7,3784.1,2.64263]
[1733331906414,1.5389,3786.9,3784.3,1.5465]
[1733331906625,2.67378532,3786.8,3784.3,1.5465]
[1733331906776,0.53508206,3785.9,3785.2,2.64185]
[1733331906972,0.53508206,3785.9,3784.5,0.55]
[1733331906973,1.57191788,3785.8,3784.5,0.55]
[1733331907244,2.64151,3785.7,3784.2,2.6425]
[1733331907548,2.6418,3785.3,3783.9,2.64277]
[1733331907843,1.5626,3785.4,3783.2,0.01384663]
[1733331908141,0.03302851,3785.3,3784.1,2.64261]
[1733331908344,0.03302851,3785.3,3783.2,2.64326]
[1733331908345,4.18885,3785.1,3783.6,2.64296]
[1733331908546,1.5469,3785.1,3783.9,2.64273]
[1733331908841,1.6406,3784.1,3783.1,2.64333]
[1733331909201,1.6406,3784.1,3782.6,1.5792]
[1733331909409,0.53596345,3784.2,3782.6,1.5792]
[1733331909741,0.53596345,3784.2,3783.0,2.64334]
[1733331909957,1.6406,3784.6,3783.8,2.64283]
[1733331910720,1.6406,3784.6,3782.6,0.40038659]
[1733331910996,0.03303341,3784.5,3783.4,2.64309]
[1733331911155,0.03303341,3784.5,3783.0,2.64334]
[1733331911465,0.53823628,3783.9,3781.6,2.64432]
[1733331911612,1.6406,3783.8,3783.0,2.64339]
[1733331912008,1.6406,3783.8,3782.2,2.64392]
[1733331912246,0.03303997,3783.7,3782.1,2.01028215]
[1733331912543,1.6406,3783.6,3782.3,2.64384]
[1733331912744,1.6406,3783.6,3781.6,1.6035]
[1733331912906,1.6406,3783.6,3781.7,0.01387571]
[1733331913108,1.5631,3785.3,3781.7,0.21387571]
[1733331913353,1.5631,3785.1,3784.3,2.64249]
[1733331913711,0.51684245,3784.4,3784.3,2.64249]
[1733331913908,2.07994245,3784.4,3782.5,2.64368]
[1733331914157,0.03303555,3784.3,3783.3,2.64318]
[1733331914371,2.07994245,3784.4,3783.7,0.55]
[1733331914675,2.07994245,3784.4,3784.2,2.64256]
[1733331914895,2.07994245,3784.4,3784.3,0.55]
[1733331915107,2.14039021,3784.4,3784.3,0.55]
[1733331915269,2.14039021,3784.4,3782.8,0.39400128]
[1733331915270,2.35442923,3784.4,3782.8,0.39400128]
[1733331915466,2.35442923,3784.4,3781.7,1.6485]
[1733331915467,1.74862608,3784.3,3781.7,1.6485]
[1733331915659,4.29806,3783.8,3782.2,2.64393]
[1733331915860,1.68824587,3783.7,3781.3,2.64459]
[1733331916059,1.71558855,3783.7,3781.4,0.01388486]
[1733331916306,0.81956067,3783.6,3782.6,2.64364]